[Event "*** SCC Grand Prix: Titled Tuesday Blitz"]
[Site "Chess.com"]
[Date "2020.07.07"]
[Round "8"]
[White "amatatanav"]
[Black "davigator"]
[Result "1-0"]
[WhiteElo "2429"]
[BlackElo "2305"]
[TimeControl "180+1"]
[EndTime "11:34:28 PDT"]
[Termination "amatatanav won by checkmate"]

1. e4 {[%clk 0:03:00.9]} 1... c5 {[%clk 0:02:59.1]} 2. Ne2 {[%clk 0:02:59.7]}
2... Nc6 {[%clk 0:02:58.4]} 3. Nbc3 {[%clk 0:02:59.4]} 3... Nf6 {[%clk
0:02:57.2]} 4. d4 {[%clk 0:02:59.6]} 4... cxd4 {[%clk 0:02:56.6]} 5. Nxd4 {[%clk
0:03:00.5]} 5... d6 {[%clk 0:02:56.9]} 6. f3 {[%clk 0:02:57.4]} 6... e5 {[%clk
0:02:55.6]} 7. Nb3 {[%clk 0:02:57.4]} 7... Be7 {[%clk 0:02:53.7]} 8. Be3 {[%clk
0:02:58.3]} 8... Be6 {[%clk 0:02:52.3]} 9. Qd2 {[%clk 0:02:58.7]} 9... h5 {[%clk
0:02:51.3]} 10. O-O-O {[%clk 0:02:54]} 10... O-O {[%clk 0:02:50.3]} 11. Nd5
{[%clk 0:02:50.1]} 11... Bxd5 {[%clk 0:02:49.6]} 12. exd5 {[%clk 0:02:50.1]}
12... Nb8 {[%clk 0:02:50.1]} 13. h3 {[%clk 0:02:38]} 13... h4 {[%clk 0:02:46.1]}
14. f4 {[%clk 0:02:03.8]} 14... Nh5 {[%clk 0:02:31.9]} 15. fxe5 {[%clk
0:02:02.3]} 15... dxe5 {[%clk 0:02:26.4]} 16. d6 {[%clk 0:01:46.7]} 16... Bf6
{[%clk 0:02:25.3]} 17. Bd3 {[%clk 0:01:46.1]} 17... Ng3 {[%clk 0:02:24.3]} 18.
Rhf1 {[%clk 0:01:44.6]} 18... Nxf1 {[%clk 0:02:22.5]} 19. Rxf1 {[%clk
0:01:42.4]} 19... Nc6 {[%clk 0:02:15.2]} 20. Qe2 {[%clk 0:01:29.8]} 20... g6
{[%clk 0:02:03.9]} 21. Qg4 {[%clk 0:01:29.4]} 21... Kg7 {[%clk 0:01:59.8]} 22.
Nc5 {[%clk 0:01:28]} 22... e4 {[%clk 0:01:22.8]} 23. Bxe4 {[%clk 0:01:13.2]}
23... Ne5 {[%clk 0:01:20.3]} 24. Qf4 {[%clk 0:01:12.9]} 24... Nc4 {[%clk
0:01:16.6]} 25. Ne6+ {[%clk 0:00:46.8]} 25... fxe6 {[%clk 0:01:11.9]} 26. Qh6+
{[%clk 0:00:47.1]} 26... Kg8 {[%clk 0:00:55]} 27. Qxg6+ {[%clk 0:00:48]} 27...
Kh8 {[%clk 0:00:53.2]} 28. Qh7# {[%clk 0:00:48.9]} 1-0

[Event "*** SCC Grand Prix: Titled Tuesday Blitz"]
[Site "Chess.com"]
[Date "2020.07.07"]
[Round "8"]
[White "Sam_ChessMood"]
[Black "temus_galaktionov"]
[Result "0-1"]
[WhiteElo "2831"]
[BlackElo "2678"]
[TimeControl "180+1"]
[EndTime "11:34:32 PDT"]
[Termination "temus_galaktionov won by resignation"]

1. e4 {[%clk 0:03:00.9]} 1... c6 {[%clk 0:03:00.9]} 2. d4 {[%clk 0:02:59]} 2...
g6 {[%clk 0:03:01.8]} 3. Nf3 {[%clk 0:02:54.8]} 3... d6 {[%clk 0:03:02]} 4. Nc3
{[%clk 0:02:48.5]} 4... Bg7 {[%clk 0:03:01.7]} 5. Be3 {[%clk 0:02:42.9]} 5...
Nd7 {[%clk 0:03:01.3]} 6. Qd2 {[%clk 0:02:42]} 6... e5 {[%clk 0:03:01.3]} 7.
O-O-O {[%clk 0:02:38.1]} 7... Qa5 {[%clk 0:03:00.3]} 8. Kb1 {[%clk 0:02:37.8]}
8... Ngf6 {[%clk 0:02:59.7]} 9. dxe5 {[%clk 0:01:42]} 9... dxe5 {[%clk
0:03:00.6]} 10. Bh6 {[%clk 0:01:37.1]} 10... O-O {[%clk 0:02:58.4]} 11. Bxg7
{[%clk 0:01:23]} 11... Kxg7 {[%clk 0:02:59.3]} 12. h4 {[%clk 0:01:22.6]} 12...
h6 {[%clk 0:02:53.1]} 13. g4 {[%clk 0:00:53]} 13... Nxg4 {[%clk 0:02:49.9]} 14.
h5 {[%clk 0:00:51.4]} 14... Ndf6 {[%clk 0:02:44]} 15. Bh3 {[%clk 0:00:35.6]}
15... Be6 {[%clk 0:02:42.4]} 16. Bxg4 {[%clk 0:00:31.8]} 16... Nxg4 {[%clk
0:02:43.3]} 17. Rdg1 {[%clk 0:00:29.2]} 17... Qd8 {[%clk 0:02:35.1]} 18. Qc1
{[%clk 0:00:22.7]} 18... g5 {[%clk 0:02:33.4]} 19. Nd1 {[%clk 0:00:14.2]} 19...
Kh7 {[%clk 0:02:07.4]} 20. Ne3 {[%clk 0:00:12.3]} 20... Nxe3 {[%clk 0:02:05.6]}
21. Qxe3 {[%clk 0:00:11.1]} 21... f6 {[%clk 0:02:05.6]} 22. Rd1 {[%clk 0:00:11]}
22... Qa5 {[%clk 0:02:05.2]} 23. b3 {[%clk 0:00:11.2]} 23... Rfd8 {[%clk
0:02:04.5]} 24. Nh2 {[%clk 0:00:11.4]} 24... Kg7 {[%clk 0:02:01.7]} 25. f3
{[%clk 0:00:11.2]} 25... Qb6 {[%clk 0:01:59.8]} 26. Qxb6 {[%clk 0:00:09.8]}
26... axb6 {[%clk 0:02:00.7]} 27. Ng4 {[%clk 0:00:10.2]} 27... Bxg4 {[%clk
0:01:54]} 28. fxg4 {[%clk 0:00:10]} 28... Rd4 {[%clk 0:01:53.8]} 29. Rxd4 {[%clk
0:00:06.8]} 29... exd4 {[%clk 0:01:54.7]} 30. Kc1 {[%clk 0:00:07]} 30... Rxa2
{[%clk 0:01:53.4]} 31. Kd2 {[%clk 0:00:07.6]} 31... Kf7 {[%clk 0:01:52]} 32. Rf1
{[%clk 0:00:06.1]} 32... Ke6 {[%clk 0:01:51.7]} 33. Rf5 {[%clk 0:00:06.2]} 33...
Ra1 {[%clk 0:01:49.7]} 0-1

[Event "*** SCC Grand Prix: Titled Tuesday Blitz"]
[Site "Chess.com"]
[Date "2020.07.07"]
[Round "8"]
[White "EvgenyRomanov"]
[Black "wonderfultime"]
[Result "0-1"]
[WhiteElo "2628"]
[BlackElo "2982"]
[TimeControl "180+1"]
[EndTime "11:34:32 PDT"]
[Termination "wonderfultime won by resignation"]

1. e4 {[%clk 0:03:00.9]} 1... c5 {[%clk 0:03:00.2]} 2. Nf3 {[%clk 0:03:00.7]}
2... Nf6 {[%clk 0:02:56]} 3. Nc3 {[%clk 0:02:57]} 3... d5 {[%clk 0:02:56.3]} 4.
Bb5+ {[%clk 0:02:39.3]} 4... Bd7 {[%clk 0:02:54.7]} 5. e5 {[%clk 0:02:39.4]}
5... Bxb5 {[%clk 0:02:53.4]} 6. Nxb5 {[%clk 0:02:38.7]} 6... Qd7 {[%clk
0:02:53.8]} 7. Nc3 {[%clk 0:02:29.4]} 7... Ng8 {[%clk 0:02:53.5]} 8. O-O {[%clk
0:02:23.9]} 8... Nc6 {[%clk 0:02:53.3]} 9. Re1 {[%clk 0:02:20.7]} 9... e6 {[%clk
0:02:53.6]} 10. Ne2 {[%clk 0:02:20.5]} 10... Nge7 {[%clk 0:02:47.8]} 11. d3
{[%clk 0:02:18.7]} 11... Ng6 {[%clk 0:02:47.1]} 12. Nf4 {[%clk 0:02:16.4]} 12...
Be7 {[%clk 0:02:46.5]} 13. Nh5 {[%clk 0:02:14.8]} 13... O-O {[%clk 0:02:45.6]}
14. c3 {[%clk 0:02:03.1]} 14... d4 {[%clk 0:02:41.1]} 15. c4 {[%clk 0:02:00.7]}
15... Rae8 {[%clk 0:02:38.2]} 16. h4 {[%clk 0:01:56.1]} 16... Bd8 {[%clk
0:02:31.4]} 17. Re4 {[%clk 0:01:48]} 17... f6 {[%clk 0:02:18.8]} 18. exf6 {[%clk
0:01:35.1]} 18... gxf6 {[%clk 0:02:19.7]} 19. Bh6 {[%clk 0:01:33.8]} 19... Rf7
{[%clk 0:02:18.2]} 20. Qd2 {[%clk 0:01:30.6]} 20... e5 {[%clk 0:02:12]} 21. Rae1
{[%clk 0:01:28.3]} 21... Kh8 {[%clk 0:02:10.2]} 22. Ng3 {[%clk 0:01:24.6]} 22...
Rg8 {[%clk 0:02:09]} 23. h5 {[%clk 0:01:19.2]} 23... Nge7 {[%clk 0:02:09.3]} 24.
Nh4 {[%clk 0:01:13.2]} 24... Bc7 {[%clk 0:02:03.1]} 25. Qd1 {[%clk 0:00:57.6]}
25... f5 {[%clk 0:01:52.5]} 26. R4e2 {[%clk 0:00:57.4]} 26... Qe6 {[%clk
0:01:44.6]} 27. Bc1 {[%clk 0:00:55.4]} 27... f4 {[%clk 0:01:37.5]} 28. Nf1
{[%clk 0:00:40.6]} 28... Qg4 {[%clk 0:01:27.6]} 0-1

[Event "*** SCC Grand Prix: Titled Tuesday Blitz"]
[Site "Chess.com"]
[Date "2020.07.07"]
[Round "8"]
[White "bmt011"]
[Black "larisakalinina"]
[Result "0-1"]
[WhiteElo "2098"]
[BlackElo "1940"]
[TimeControl "180+1"]
[EndTime "11:34:35 PDT"]
[Termination "larisakalinina won by resignation"]

1. d4 {[%clk 0:03:00.9]} 1... d5 {[%clk 0:03:00.9]} 2. Bf4 {[%clk 0:03:00.9]}
2... Nf6 {[%clk 0:02:59.6]} 3. e3 {[%clk 0:03:00.9]} 3... g6 {[%clk 0:02:58.7]}
4. Nf3 {[%clk 0:02:59]} 4... Bf5 {[%clk 0:02:56.8]} 5. c4 {[%clk 0:02:57.3]}
5... Bg7 {[%clk 0:02:49.9]} 6. Qb3 {[%clk 0:02:56.5]} 6... b6 {[%clk 0:02:38.1]}
7. Nc3 {[%clk 0:02:53.8]} 7... dxc4 {[%clk 0:02:31.3]} 8. Bxc4 {[%clk
0:02:52.7]} 8... O-O {[%clk 0:02:31]} 9. h3 {[%clk 0:02:51]} 9... Nc6 {[%clk
0:02:21.9]} 10. Qa4 {[%clk 0:02:31.6]} 10... Na5 {[%clk 0:02:18.8]} 11. Ba6
{[%clk 0:02:25.2]} 11... Bd7 {[%clk 0:02:10]} 12. Bb5 {[%clk 0:02:15.3]} 12...
c6 {[%clk 0:02:07.9]} 13. Be2 {[%clk 0:02:04.2]} 13... c5 {[%clk 0:02:07.8]} 14.
Bb5 {[%clk 0:01:54.7]} 14... cxd4 {[%clk 0:02:06.7]} 15. Nxd4 {[%clk 0:01:52.5]}
15... Rc8 {[%clk 0:01:47.8]} 16. O-O {[%clk 0:01:20.5]} 16... Bxb5 {[%clk
0:01:36.5]} 17. Ncxb5 {[%clk 0:01:04.8]} 17... Qd7 {[%clk 0:01:33.5]} 18. b4
{[%clk 0:00:48.8]} 18... Rc4 {[%clk 0:01:24.2]} 19. a3 {[%clk 0:00:23.4]} 19...
Nd5 {[%clk 0:01:19.2]} 20. Nc3 {[%clk 0:00:15.9]} 20... Qxa4 {[%clk 0:01:17.4]}
21. Nxa4 {[%clk 0:00:16.3]} 21... Nxf4 {[%clk 0:01:17.4]} 22. exf4 {[%clk
0:00:13.1]} 22... Rxd4 {[%clk 0:01:16.1]} 0-1

[Event "*** SCC Grand Prix: Titled Tuesday Blitz"]
[Site "Chess.com"]
[Date "2020.07.07"]
[Round "8"]
[White "GAusal"]
[Black "Ermito2020"]
[Result "0-1"]
[WhiteElo "2087"]
[BlackElo "2452"]
[TimeControl "180+1"]
[EndTime "11:34:38 PDT"]
[Termination "Ermito2020 won by resignation"]

1. d4 {[%clk 0:03:00.9]} 1... d5 {[%clk 0:02:59.1]} 2. Bf4 {[%clk 0:03:00.1]}
2... Nf6 {[%clk 0:02:58.4]} 3. e3 {[%clk 0:03:00.1]} 3... g6 {[%clk 0:02:58.2]}
4. Nf3 {[%clk 0:03:00]} 4... Bg7 {[%clk 0:02:58.7]} 5. h3 {[%clk 0:02:59.3]}
5... c5 {[%clk 0:02:54.9]} 6. c3 {[%clk 0:02:58.8]} 6... Nc6 {[%clk 0:02:54.5]}
7. Be2 {[%clk 0:02:59]} 7... Ne4 {[%clk 0:02:51.5]} 8. Nbd2 {[%clk 0:02:57.8]}
8... Nxd2 {[%clk 0:02:49.7]} 9. Nxd2 {[%clk 0:02:57.5]} 9... Qb6 {[%clk
0:02:45.7]} 10. Qb3 {[%clk 0:02:54.9]} 10... c4 {[%clk 0:02:45.3]} 11. Qxb6
{[%clk 0:02:54.4]} 11... axb6 {[%clk 0:02:46.2]} 12. a3 {[%clk 0:02:54.1]} 12...
b5 {[%clk 0:02:45.8]} 13. e4 {[%clk 0:02:52.8]} 13... e6 {[%clk 0:02:39.7]} 14.
Bf3 {[%clk 0:02:48.4]} 14... Ne7 {[%clk 0:02:39.1]} 15. Bd6 {[%clk 0:02:46.3]}
15... dxe4 {[%clk 0:02:35.2]} 16. Nxe4 {[%clk 0:02:38.4]} 16... Nd5 {[%clk
0:02:24.9]} 17. Bc5 {[%clk 0:02:14.7]} 17... b6 {[%clk 0:02:20.1]} 18. Bd6
{[%clk 0:01:57.3]} 18... Bb7 {[%clk 0:02:18.7]} 19. O-O {[%clk 0:01:48.8]} 19...
Kd7 {[%clk 0:02:16.8]} 20. Bg3 {[%clk 0:01:46.9]} 20... Bc6 {[%clk 0:02:10.5]}
21. Nd6 {[%clk 0:01:41]} 21... f6 {[%clk 0:01:59.4]} 22. Ne4 {[%clk 0:01:29.8]}
22... h5 {[%clk 0:01:46.5]} 23. Nd2 {[%clk 0:01:29.1]} 23... h4 {[%clk
0:01:44.8]} 24. Bh2 {[%clk 0:01:28.1]} 24... Bh6 {[%clk 0:01:44.7]} 25. Bxd5
{[%clk 0:01:11.7]} 25... Bxd5 {[%clk 0:01:42.5]} 26. Nf3 {[%clk 0:01:10.8]}
26... g5 {[%clk 0:01:40.2]} 27. Rfe1 {[%clk 0:01:06.7]} 27... Rhg8 {[%clk
0:01:36.9]} 28. Rad1 {[%clk 0:01:03.4]} 28... g4 {[%clk 0:01:35.8]} 29. hxg4
{[%clk 0:00:54]} 29... Rxg4 {[%clk 0:01:34.8]} 30. Kf1 {[%clk 0:00:41.1]} 30...
Rag8 {[%clk 0:01:28.1]} 31. Bb8 {[%clk 0:00:16.3]} 31... Rxb8 {[%clk 0:01:26.2]}
0-1

[Event "*** SCC Grand Prix: Titled Tuesday Blitz"]
[Site "Chess.com"]
[Date "2020.07.07"]
[Round "8"]
[White "inegrepus"]
[Black "Godzillator"]
[Result "0-1"]
[WhiteElo "2177"]
[BlackElo "2354"]
[TimeControl "180+1"]
[EndTime "11:34:39 PDT"]
[Termination "Godzillator won by resignation"]

1. d4 {[%clk 0:03:00.8]} 1... d5 {[%clk 0:02:59.4]} 2. c4 {[%clk 0:03:00.7]}
2... c6 {[%clk 0:02:59.5]} 3. Nf3 {[%clk 0:03:00.8]} 3... Nf6 {[%clk 0:02:59.4]}
4. e3 {[%clk 0:03:00.8]} 4... Bf5 {[%clk 0:02:58.6]} 5. Nc3 {[%clk 0:03:00.2]}
5... a6 {[%clk 0:02:58.5]} 6. Qb3 {[%clk 0:02:57]} 6... b5 {[%clk 0:02:58.1]} 7.
cxd5 {[%clk 0:02:55.9]} 7... cxd5 {[%clk 0:02:58.3]} 8. Ne5 {[%clk 0:02:48.2]}
8... Nbd7 {[%clk 0:02:51.5]} 9. a4 {[%clk 0:02:47.4]} 9... Nxe5 {[%clk
0:02:44.1]} 10. dxe5 {[%clk 0:02:47.2]} 10... Nd7 {[%clk 0:02:39.1]} 11. axb5
{[%clk 0:02:44.5]} 11... Nxe5 {[%clk 0:02:36.4]} 12. bxa6 {[%clk 0:02:43.2]}
12... Nd3+ {[%clk 0:02:34.7]} 13. Bxd3 {[%clk 0:02:38]} 13... Bxd3 {[%clk
0:02:34.1]} 14. Qxd5 {[%clk 0:02:33.9]} 14... Qxd5 {[%clk 0:02:25.1]} 15. Nxd5
{[%clk 0:02:33.4]} 15... Ra7 {[%clk 0:02:16.1]} 16. e4 {[%clk 0:02:24.8]} 16...
Kd8 {[%clk 0:01:46.5]} 17. Be3 {[%clk 0:02:23.5]} 17... Rxa6 {[%clk 0:01:46.4]}
18. Rd1 {[%clk 0:02:12.4]} 18... Bc2 {[%clk 0:01:29.3]} 19. O-O {[%clk
0:01:41.1]} 19... Bxd1 {[%clk 0:01:28.2]} 20. Rxd1 {[%clk 0:01:41.1]} 20... e6
{[%clk 0:01:21.7]} 21. Bb6+ {[%clk 0:01:18.7]} 21... Kc8 {[%clk 0:01:15.4]} 22.
Rc1+ {[%clk 0:01:09.6]} 22... Kb7 {[%clk 0:01:13.4]} 23. Rc7+ {[%clk 0:00:24.2]}
23... Kb8 {[%clk 0:01:12.6]} 0-1

[Event "*** SCC Grand Prix: Titled Tuesday Blitz"]
[Site "Chess.com"]
[Date "2020.07.07"]
[Round "8"]
[White "Kobalia"]
[Black "Sanyura"]
[Result "1-0"]
[WhiteElo "2709"]
[BlackElo "2504"]
[TimeControl "180+1"]
[EndTime "11:34:46 PDT"]
[Termination "Kobalia won by resignation"]

1. e4 {[%clk 0:03:00.9]} 1... c5 {[%clk 0:03:00]} 2. Nf3 {[%clk 0:02:58.7]} 2...
Nc6 {[%clk 0:02:53.2]} 3. Bb5 {[%clk 0:02:58.1]} 3... g6 {[%clk 0:02:49.9]} 4.
Bxc6 {[%clk 0:02:56.3]} 4... dxc6 {[%clk 0:02:49.7]} 5. O-O {[%clk 0:02:57.2]}
5... Bg7 {[%clk 0:02:49.9]} 6. d3 {[%clk 0:02:57.3]} 6... e5 {[%clk 0:02:49.9]}
7. a4 {[%clk 0:02:55.9]} 7... Qe7 {[%clk 0:02:41.7]} 8. a5 {[%clk 0:02:55.2]}
8... Nf6 {[%clk 0:02:42.1]} 9. h3 {[%clk 0:02:45.9]} 9... O-O {[%clk 0:02:42]}
10. Qe1 {[%clk 0:02:44.9]} 10... Ne8 {[%clk 0:02:38.8]} 11. Na3 {[%clk
0:02:41.5]} 11... Nc7 {[%clk 0:02:33.1]} 12. Nc4 {[%clk 0:02:38.4]} 12... Nb5
{[%clk 0:02:31.7]} 13. Bd2 {[%clk 0:02:24.5]} 13... Nd4 {[%clk 0:02:00.9]} 14.
Nxd4 {[%clk 0:02:23.6]} 14... exd4 {[%clk 0:02:01.8]} 15. Bf4 {[%clk 0:02:19.4]}
15... Rd8 {[%clk 0:01:54.9]} 16. f3 {[%clk 0:02:06.6]} 16... Be6 {[%clk
0:01:53.8]} 17. b3 {[%clk 0:02:05.1]} 17... Bxc4 {[%clk 0:01:03]} 18. bxc4
{[%clk 0:02:04.3]} 18... b5 {[%clk 0:00:48.5]} 19. axb6 {[%clk 0:02:03.6]} 19...
axb6 {[%clk 0:00:48.4]} 20. Qg3 {[%clk 0:02:04.2]} 20... Qb7 {[%clk 0:00:40.8]}
21. Bd6 {[%clk 0:02:02.8]} 21... Rxa1 {[%clk 0:00:36.2]} 22. Rxa1 {[%clk
0:02:01.7]} 22... b5 {[%clk 0:00:36.6]} 23. cxb5 {[%clk 0:01:56.2]} 23... Qxb5
{[%clk 0:00:23.7]} 24. Qg5 {[%clk 0:01:48.2]} 24... f6 {[%clk 0:00:14.8]} 25.
Qxc5 {[%clk 0:01:47]} 25... f5 {[%clk 0:00:06.3]} 26. Ra7 {[%clk 0:01:35.5]}
26... fxe4 {[%clk 0:00:03.2]} 27. fxe4 {[%clk 0:01:34.5]} 27... Qxc5 {[%clk
0:00:02.8]} 28. Bxc5 {[%clk 0:01:34.4]} 28... Rc8 {[%clk 0:00:02.2]} 29. Bd6
{[%clk 0:01:29.4]} 1-0

[Event "*** SCC Grand Prix: Titled Tuesday Blitz"]
[Site "Chess.com"]
[Date "2020.07.07"]
[Round "8"]
[White "Synctel"]
[Black "quesfr"]
[Result "0-1"]
[WhiteElo "1932"]
[BlackElo "2208"]
[TimeControl "180+1"]
[EndTime "11:34:55 PDT"]
[Termination "quesfr won on time"]

1. d4 {[%clk 0:03:00.9]} 1... d5 {[%clk 0:02:59]} 2. Nf3 {[%clk 0:02:59.3]} 2...
Nf6 {[%clk 0:02:58.8]} 3. Bf4 {[%clk 0:02:58.9]} 3... c5 {[%clk 0:02:57.9]} 4.
c3 {[%clk 0:02:57.8]} 4... Nc6 {[%clk 0:02:57.1]} 5. e3 {[%clk 0:02:55.8]} 5...
Qb6 {[%clk 0:02:55.5]} 6. Qb3 {[%clk 0:02:52.5]} 6... c4 {[%clk 0:02:55.5]} 7.
Qxb6 {[%clk 0:02:49.8]} 7... axb6 {[%clk 0:02:56.4]} 8. Nbd2 {[%clk 0:02:24.9]}
8... b5 {[%clk 0:02:51.4]} 9. a3 {[%clk 0:02:24.9]} 9... b4 {[%clk 0:02:51.2]}
10. cxb4 {[%clk 0:02:15.2]} 10... Nxb4 {[%clk 0:02:51.3]} 11. Rc1 {[%clk
0:02:14.4]} 11... Nc6 {[%clk 0:02:49.8]} 12. h3 {[%clk 0:01:43.8]} 12... Bf5
{[%clk 0:02:48]} 13. g4 {[%clk 0:01:40.4]} 13... Bg6 {[%clk 0:02:48.1]} 14. Nh4
{[%clk 0:01:28.2]} 14... e6 {[%clk 0:02:41.2]} 15. Nxg6 {[%clk 0:01:19.5]} 15...
hxg6 {[%clk 0:02:42.1]} 16. Bg2 {[%clk 0:01:19.9]} 16... b5 {[%clk 0:01:30.8]}
17. Ke2 {[%clk 0:00:53.7]} 17... b4 {[%clk 0:01:29.2]} 18. Nxc4 {[%clk
0:00:44.5]} 18... bxa3 {[%clk 0:01:20.6]} 19. Nxa3 {[%clk 0:00:43.8]} 19... Kd7
{[%clk 0:01:09.8]} 20. Nb5 {[%clk 0:00:29.3]} 20... Ra5 {[%clk 0:01:08.9]} 21.
Nc3 {[%clk 0:00:17.9]} 21... Bd6 {[%clk 0:01:07.7]} 22. Bxd6 {[%clk 0:00:17.7]}
22... Kxd6 {[%clk 0:01:08.6]} 23. Ra1 {[%clk 0:00:15.6]} 23... Rb8 {[%clk
0:01:05.5]} 24. Rxa5 {[%clk 0:00:07.4]} 24... Rxb2+ {[%clk 0:01:05.4]} 25. Kf3
{[%clk 0:00:02.3]} 25... Nxa5 {[%clk 0:01:06.3]} 0-1

[Event "*** SCC Grand Prix: Titled Tuesday Blitz"]
[Site "Chess.com"]
[Date "2020.07.07"]
[Round "8"]
[White "maximnovik"]
[Black "Yoshikrov"]
[Result "1-0"]
[WhiteElo "2510"]
[BlackElo "2108"]
[TimeControl "180+1"]
[EndTime "11:34:57 PDT"]
[Termination "maximnovik won by checkmate"]

1. d4 {[%clk 0:03:00.9]} 1... Nf6 {[%clk 0:02:57.1]} 2. Bg5 {[%clk 0:03:00.7]}
2... d5 {[%clk 0:02:52.3]} 3. Bxf6 {[%clk 0:03:00.2]} 3... exf6 {[%clk
0:02:52.6]} 4. e3 {[%clk 0:03:00.3]} 4... Bd6 {[%clk 0:02:50.6]} 5. Bd3 {[%clk
0:02:56.3]} 5... Nc6 {[%clk 0:02:08.8]} 6. c3 {[%clk 0:02:53.7]} 6... Be6 {[%clk
0:02:07.1]} 7. Qf3 {[%clk 0:02:50.1]} 7... Qd7 {[%clk 0:02:04]} 8. h3 {[%clk
0:02:49.1]} 8... O-O {[%clk 0:01:25.1]} 9. Nd2 {[%clk 0:02:46.7]} 9... Ne7
{[%clk 0:01:19.9]} 10. g4 {[%clk 0:02:45.1]} 10... c6 {[%clk 0:01:18.8]} 11. Ne2
{[%clk 0:02:44.7]} 11... Rfe8 {[%clk 0:01:13]} 12. O-O-O {[%clk 0:02:40.9]}
12... b5 {[%clk 0:01:13.3]} 13. Rdg1 {[%clk 0:02:36.9]} 13... b4 {[%clk
0:01:08.6]} 14. h4 {[%clk 0:02:26]} 14... bxc3 {[%clk 0:01:08.8]} 15. Nxc3
{[%clk 0:02:25.4]} 15... c5 {[%clk 0:00:57.7]} 16. g5 {[%clk 0:02:21.4]} 16...
cxd4 {[%clk 0:00:51.3]} 17. gxf6 {[%clk 0:01:54.6]} 17... Nf5 {[%clk 0:00:39.8]}
18. Rxg7+ {[%clk 0:01:22.7]} 18... Nxg7 {[%clk 0:00:29.2]} 19. Rg1 {[%clk
0:01:22.6]} 19... Bf8 {[%clk 0:00:20.1]} 20. Qh5 {[%clk 0:01:11.8]} 20... Bf5
{[%clk 0:00:14.6]} 21. Bxf5 {[%clk 0:01:08.8]} 21... h6 {[%clk 0:00:12.4]} 22.
Qxh6 {[%clk 0:01:01.8]} 22... Qxf5 {[%clk 0:00:12.3]} 23. Rxg7+ {[%clk
0:01:00.3]} 23... Bxg7 {[%clk 0:00:11.7]} 24. Qxg7# {[%clk 0:01:00.3]} 1-0

[Event "*** SCC Grand Prix: Titled Tuesday Blitz"]
[Site "Chess.com"]
[Date "2020.07.07"]
[Round "8"]
[White "Kildepiotr"]
[Black "TheBigBoss04"]
[Result "0-1"]
[WhiteElo "2619"]
[BlackElo "2755"]
[TimeControl "180+1"]
[EndTime "11:35:05 PDT"]
[Termination "TheBigBoss04 won by resignation"]

1. Nf3 {[%clk 0:03:00.9]} 1... Nf6 {[%clk 0:02:58.4]} 2. g3 {[%clk 0:03:01.1]}
2... g6 {[%clk 0:02:56.6]} 3. Bg2 {[%clk 0:03:01.6]} 3... Bg7 {[%clk 0:02:57.5]}
4. O-O {[%clk 0:03:02]} 4... O-O {[%clk 0:02:57.8]} 5. d4 {[%clk 0:03:02.4]}
5... d5 {[%clk 0:02:53.5]} 6. c4 {[%clk 0:03:01.9]} 6... c6 {[%clk 0:02:53.1]}
7. Nc3 {[%clk 0:02:58.9]} 7... dxc4 {[%clk 0:02:36.7]} 8. a4 {[%clk 0:02:46.2]}
8... Nd5 {[%clk 0:02:31.7]} 9. e4 {[%clk 0:02:43.6]} 9... Nb4 {[%clk 0:02:30.7]}
10. Be3 {[%clk 0:02:41.1]} 10... b6 {[%clk 0:01:50.1]} 11. Qe2 {[%clk
0:02:33.4]} 11... Ba6 {[%clk 0:01:49.8]} 12. Rfd1 {[%clk 0:02:31.4]} 12... Nd7
{[%clk 0:01:42.7]} 13. Ne5 {[%clk 0:02:27.2]} 13... Nxe5 {[%clk 0:01:40.6]} 14.
dxe5 {[%clk 0:02:26.8]} 14... Qc7 {[%clk 0:01:39.7]} 15. f4 {[%clk 0:02:26.6]}
15... Rad8 {[%clk 0:01:39.6]} 16. Bf1 {[%clk 0:02:21.4]} 16... Nd3 {[%clk
0:01:38.7]} 17. Qg2 {[%clk 0:02:15.2]} 17... e6 {[%clk 0:01:37.8]} 18. Rd2
{[%clk 0:02:09.9]} 18... Rd7 {[%clk 0:01:35.6]} 19. Rad1 {[%clk 0:02:09.1]}
19... Rfd8 {[%clk 0:01:35.2]} 20. h4 {[%clk 0:02:06.7]} 20... b5 {[%clk
0:01:23.9]} 21. axb5 {[%clk 0:01:58.1]} 21... cxb5 {[%clk 0:01:24.8]} 22. Ra1
{[%clk 0:01:39.6]} 22... Qc6 {[%clk 0:01:18.7]} 23. Na2 {[%clk 0:01:27.8]} 23...
Bb7 {[%clk 0:01:14.5]} 24. Bxd3 {[%clk 0:01:26.7]} 24... cxd3 {[%clk 0:01:03.5]}
25. Nb4 {[%clk 0:01:26.6]} 25... Qc4 {[%clk 0:01:00.5]} 26. Na6 {[%clk
0:01:20.1]} 26... Bxe4 {[%clk 0:00:57.6]} 27. Qf2 {[%clk 0:01:20.3]} 27... Bc6
{[%clk 0:00:49.3]} 28. Nc5 {[%clk 0:01:19.6]} 28... Rd5 {[%clk 0:00:47.2]} 29.
Rxa7 {[%clk 0:01:18.1]} 29... Bf8 {[%clk 0:00:45]} 30. Na6 {[%clk 0:01:05.3]}
30... R5d7 {[%clk 0:00:37.5]} 31. Rxd7 {[%clk 0:00:57.6]} 31... Qe4 {[%clk
0:00:33.6]} 32. Qh2 {[%clk 0:00:49.4]} 32... Qxe3+ {[%clk 0:00:31.3]} 0-1

[Event "*** SCC Grand Prix: Titled Tuesday Blitz"]
[Site "Chess.com"]
[Date "2020.07.07"]
[Round "8"]
[White "GameOverBro"]
[Black "SahajGrover"]
[Result "0-1"]
[WhiteElo "2500"]
[BlackElo "2669"]
[TimeControl "180+1"]
[EndTime "11:35:07 PDT"]
[Termination "SahajGrover won by resignation"]

1. e4 {[%clk 0:03:00.9]} 1... e6 {[%clk 0:02:58.6]} 2. d4 {[%clk 0:03:00.6]}
2... d5 {[%clk 0:02:58.8]} 3. Nd2 {[%clk 0:02:58.7]} 3... c5 {[%clk 0:02:57.1]}
4. exd5 {[%clk 0:02:57.9]} 4... Qxd5 {[%clk 0:02:58]} 5. Ngf3 {[%clk 0:02:57.5]}
5... Nf6 {[%clk 0:02:52.4]} 6. Bc4 {[%clk 0:02:55.6]} 6... Qh5 {[%clk
0:02:50.8]} 7. O-O {[%clk 0:02:49.7]} 7... Nc6 {[%clk 0:02:48.1]} 8. dxc5 {[%clk
0:02:47.9]} 8... Bxc5 {[%clk 0:02:46.5]} 9. Nb3 {[%clk 0:02:47.9]} 9... Bb6
{[%clk 0:02:32.4]} 10. Qd6 {[%clk 0:02:24.5]} 10... Ne4 {[%clk 0:02:26.5]} 11.
Qf4 {[%clk 0:02:04.2]} 11... Nf6 {[%clk 0:02:09.4]} 12. Qd6 {[%clk 0:02:03.1]}
12... Bd7 {[%clk 0:01:45.2]} 13. Bf4 {[%clk 0:01:39.2]} 13... O-O-O {[%clk
0:01:22.7]} 14. Rad1 {[%clk 0:01:20.3]} 14... Ne4 {[%clk 0:01:06.1]} 15. Qa3
{[%clk 0:00:56]} 15... g5 {[%clk 0:00:57.7]} 16. Bd6 {[%clk 0:00:43.3]} 16... g4
{[%clk 0:00:50]} 17. Nfd4 {[%clk 0:00:39.2]} 17... Nxd6 {[%clk 0:00:44.2]} 18.
Nxc6 {[%clk 0:00:32.9]} 18... Bxc6 {[%clk 0:00:40.7]} 19. Rxd6 {[%clk
0:00:32.7]} 19... Rxd6 {[%clk 0:00:41.6]} 20. Qxd6 {[%clk 0:00:27.8]} 20... Bc7
{[%clk 0:00:41.4]} 21. Bxe6+ {[%clk 0:00:26.6]} 21... fxe6 {[%clk 0:00:33.8]}
22. Qxe6+ {[%clk 0:00:26.2]} 22... Bd7 {[%clk 0:00:33.3]} 0-1